bitfinex-derivatives/quotes_BTCF0:USTF0_20250501
["timestamp","ask_amount","ask_price","bid_price","bid_amount"]
[1746081334943,0.03365401,95040.0,95039.0,0.2104294]
[1746081335146,0.03365401,95040.0,95039.0,0.4904294]
[1746081335446,0.0336,95040.0,95039.0,0.4904294]
[1746081335645,0.03364,95040.0,95039.0,0.5230294]
[1746081335847,0.0336,95040.0,95039.0,0.5230294]
[1746081336047,0.03364,95040.0,95039.0,0.5230294]
[1746081337050,0.03664,95040.0,95039.0,0.5230294]
[1746081337552,0.03964,95040.0,95039.0,0.5230294]
[1746081338850,0.03964,95040.0,95039.0,0.53333841]
[1746081343654,1.40670126,95040.0,95039.0,0.28]
[1746081344056,1.76750126,95040.0,95039.0,0.28]
[1746081344256,1.88950126,95040.0,95039.0,0.28]
[1746081344555,2.02622127,95040.0,95039.0,0.1788]
[1746081344762,0.2104515,95029.0,95028.0,0.2104528]
[1746081344959,1.72788566,95029.0,95028.0,0.4704528]
[1746081345854,1.51743416,95029.0,95028.0,0.4714528]
[1746081346052,1.15663416,95029.0,95028.0,0.4714528]
[1746081346558,4e-05,95040.0,95039.0,0.2104294]
[1746081346857,0.2104253,95041.0,95040.0,0.2104271]
[1746081347051,0.2104253,95041.0,95040.0,0.4604271]
[1746081347248,1.36705946,95041.0,95040.0,0.4604271]
[1746081347652,1.40029946,95041.0,95040.0,0.4604271]
[1746081348256,1.40329946,95041.0,95040.0,0.4604271]
[1746081348456,1.40629946,95041.0,95040.0,0.4604271]
[1746081349964,1.43909946,95041.0,95040.0,0.4917271]
[1746081351963,1.22867416,95041.0,95040.0,0.4917271]
[1746081352170,1.40589906,95041.0,95040.0,0.4917271]
[1746081352361,1.43935906,95041.0,95040.0,0.4917271]
[1746081352561,1.43939906,95041.0,95040.0,0.4917271]
[1746081358067,1.22897416,95041.0,95040.0,0.4917271]
[1746081361667,1.19547416,95041.0,95040.0,0.4917271]
[1746081363869,1.16267416,95041.0,95040.0,0.4917271]
[1746081364071,0.00604,95041.0,95040.0,0.4917271]
[1746081366856,0.006,95041.0,95040.0,0.4917271]
[1746081367060,0.00604,95041.0,95040.0,0.4917271]
[1746081367468,0.00604,95041.0,95040.0,0.2813]
[1746081367959,0.00604,95041.0,95040.0,0.4917271]
[1746081381877,0.00604,95041.0,95040.0,0.5550471]
[1746081382278,0.04014,95041.0,95040.0,0.5550471]
[1746081384377,0.03714,95041.0,95040.0,0.5560471]
[1746081384881,0.03414,95041.0,95040.0,0.5570471]
[1746081389374,0.2445649,95041.0,95040.0,0.5570471]
[1746081392373,0.2445649,95041.0,95040.0,0.4937271]
[1746081392580,0.2445649,95041.0,95040.0,0.5570471]
[1746081396390,0.2445249,95041.0,95040.0,0.5570471]
[1746081398087,0.0341,95041.0,95040.0,0.5570471]
[1746081398788,0.2104194,95044.0,95043.0,0.2104205]
[1746081399089,0.2424194,95044.0,95043.0,0.4604205]
[1746081399283,1.39905356,95044.0,95043.0,0.4604205]
[1746081399477,1.39905356,95044.0,95043.0,0.5266205]
[1746081400577,1.39905356,95044.0,95043.0,0.5276205]
[1746081400976,1.39905356,95044.0,95043.0,0.5286205]
[1746081402386,1.39905356,95044.0,95043.0,0.3182]
[1746081402582,1.43175356,95044.0,95043.0,0.5286205]
[1746081403685,1.43175356,95044.0,95043.0,0.33939956]
[1746081409497,1.43175356,95044.0,95043.0,0.35423956]
[1746081411298,1.43175356,95044.0,95043.0,0.14381906]
[1746081412697,1.43175356,95044.0,95043.0,0.35423956]
[1746081433608,1.39905356,95044.0,95043.0,0.35423956]
[1746081435307,1.39905356,95044.0,95043.0,0.07761906]
[1746081435612,0.2104271,95040.0,95039.0,0.01578]
[1746081435908,0.2104316,95038.0,95037.0,0.16108367]
[1746081436112,1.84986576,95038.0,95037.0,0.16108367]
[1746081436293,1.95508577,95038.0,95037.0,0.41108367]
[1746081436599,2.02078577,95038.0,95037.0,0.41108367]
[1746081437007,2.02078577,95038.0,95037.0,0.41308367]
[1746081437506,2.02078577,95038.0,95037.0,0.41508367]
[1746081439209,1.91556576,95038.0,95037.0,0.41508367]
[1746081439514,1.91556576,95038.0,95037.0,0.254]
[1746081439708,2.14386576,95038.0,95037.0,0.254]
[1746081445815,2.15430384,95038.0,95037.0,0.254]
[1746081446112,2.14386576,95038.0,95037.0,0.254]
[1746081447508,2.14390576,95038.0,95037.0,0.254]
[1746081447814,2.14386576,95038.0,95037.0,0.254]
[1746081448010,2.14390576,95038.0,95037.0,0.254]
[1746081448405,2.14390576,95038.0,95037.0,0.2844]
[1746081449611,2.11180576,95038.0,95037.0,0.2844]
[1746081450413,0.7111,95038.0,95037.0,0.4948338]
[1746081450617,0.35034,95038.0,95037.0,0.4948338]
[1746081450918,0.3503,95038.0,95037.0,0.4948338]
[1746081451213,0.22834,95038.0,95037.0,0.6168338]
[1746081451415,4e-05,95038.0,95037.0,0.6168338]
[1746081452924,4e-05,95038.0,95037.0,0.62725607]
[1746081453113,4e-05,95038.0,95037.0,0.50525607]
[1746081453621,0.2104716,95038.0,95037.0,0.2844]
[1746081453821,0.2104716,95038.0,95037.0,0.34768]
[1746081454423,1.36710576,95038.0,95037.0,0.34768]
[1746081455013,1.39860576,95038.0,95037.0,0.34768]
[1746081457326,1.75940576,95038.0,95037.0,0.34768]
[1746081460225,1.75940576,95038.0,95037.0,0.2844]
[1746081464233,1.39860576,95038.0,95037.0,0.2844]
[1746081464415,1.75940576,95038.0,95037.0,0.2844]
[1746081472023,1.75940576,95038.0,95037.0,0.3171]
[1746081477726,1.75940576,95038.0,95037.0,0.2844]
[1746081478236,1.88140576,95038.0,95037.0,0.2844]
[1746081478845,1.91440576,95038.0,95037.0,0.2844]
[1746081479135,1.91440576,95038.0,95037.0,0.254]
[1746081479331,0.2104581,95026.0,95019.0,0.21436935]
[1746081479539,1.72789226,95026.0,95025.0,0.40108367]
[1746081479736,1.83312826,95026.0,95025.0,0.40108367]
[1746081480134,1.89592826,95026.0,95025.0,0.40108367]
[1746081480334,1.89592826,95026.0,95025.0,0.43168367]
[1746081480737,1.89592826,95026.0,95025.0,0.2706]
[1746081481442,1.75989226,95026.0,95025.0,0.4890604]
[1746081481641,1.75989226,95026.0,95025.0,0.5205604]
[1746081481944,1.75989226,95026.0,95025.0,0.3101]
[1746081482241,1.75889226,95026.0,95025.0,0.3081]
[1746081482429,1.75889226,95026.0,95025.0,0.3101]
[1746081482842,1.75889226,95026.0,95025.0,0.3081]
[1746081483039,1.75889226,95026.0,95025.0,0.3091]
[1746081483435,1.75789226,95026.0,95025.0,0.3031]
[1746081483734,1.75789226,95026.0,95025.0,0.3041]
[1746081484240,1.87989226,95026.0,95025.0,0.3041]
[1746081484542,1.87989226,95026.0,95025.0,0.3031]
[1746081484742,1.87989226,95026.0,95025.0,0.3051]
[1746081484939,1.87989226,95026.0,95025.0,0.3061]
[1746081485241,1.75789226,95026.0,95025.0,0.3061]
[1746081486139,1.75789226,95026.0,95025.0,0.3041]
[1746081486332,1.75789226,95026.0,95025.0,0.3061]
[1746081487642,1.75789226,95026.0,95025.0,0.3041]
[1746081487841,1.75789226,95026.0,95025.0,0.3061]
[1746081488144,1.75789226,95026.0,95025.0,0.3041]
[1746081488443,1.75789226,95026.0,95025.0,0.3061]
[1746081489244,1.75789226,95026.0,95025.0,0.3041]
[1746081489444,1.75789226,95026.0,95025.0,0.3061]
[1746081495146,1.75789226,95026.0,95025.0,0.2746]
[1746081495443,1.86312826,95026.0,95025.0,0.244]
[1746081496047,1.89362826,95026.0,95025.0,0.244]
[1746081496236,2.01562826,95026.0,95025.0,0.244]
[1746081496639,2.01562826,95026.0,95025.0,0.2037826]
[1746081496839,2.05517016,95026.0,95010.0,0.35]
[1746081497035,1.78054846,95011.0,95010.0,0.12]
[1746081497440,1.88580046,95011.0,95010.0,0.12]
[1746081498144,2.00780046,95011.0,95010.0,0.12]
[1746081498847,2.00780046,95011.0,95010.0,0.121]
[1746081500149,1.90254846,95011.0,95010.0,0.121]
[1746081500449,0.2105047,95005.0,95004.0,0.16108367]
[1746081500653,1.95623886,95005.0,95004.0,0.25108367]
[1746081501343,2.14133886,95005.0,95004.0,0.25108367]
[1746081501646,2.14133886,95005.0,95004.0,0.25208367]
[1746081501835,2.14133886,95005.0,95004.0,0.25308367]
[1746081502034,2.14913531,95005.0,95004.0,0.25308367]
[1746081502239,2.14913531,95005.0,95004.0,0.16308367]
[1746081508756,2.14913531,95005.0,95004.0,0.002]
[1746081510553,2.11813531,95005.0,95004.0,0.112]
[1746081510762,2.08603531,95005.0,95004.0,0.002]
[1746081511050,2.08603531,95005.0,95004.0,0.182]
[1746081511051,2.08607531,95005.0,95004.0,0.182]
[1746081511254,1.96407531,95005.0,95004.0,0.182]
[1746081511453,1.96403531,95005.0,95004.0,0.182]
[1746081511653,1.96407531,95005.0,95004.0,0.182]
[1746081512352,0.80744115,95005.0,95004.0,0.182]
[1746081514345,0.80740115,95005.0,95004.0,0.182]
[1746081514659,0.80744115,95005.0,95004.0,0.182]
[1746081514857,0.80740115,95005.0,95004.0,0.182]
[1746081515057,0.80744115,95005.0,95004.0,0.182]
[1746081516046,0.57914115,95005.0,95004.0,0.214]
[1746081527655,1.73577531,95005.0,95004.0,0.182]
[1746081527859,1.76687531,95005.0,95004.0,0.002]
[1746081528158,1.88887531,95005.0,95004.0,0.002]
[1746081528362,1.88887531,95005.0,95004.0,0.0347]
[1746081530164,1.76687531,95005.0,95004.0,0.0347]
[1746081530359,0.61024115,95005.0,95004.0,0.0347]
[1746081530569,1.76687531,95005.0,95004.0,0.0347]
[1746081533560,1.99517531,95005.0,95004.0,0.0347]
[1746081536255,1.99517531,95005.0,95004.0,0.0327]
[1746081536562,1.99717531,95005.0,95004.0,0.0327]
[1746081536761,2.35797531,95005.0,95004.0,0.0327]
[1746081537765,0.0526295,94999.0,94983.0,0.0526379]
[1746081537961,1.36716316,94994.0,94993.0,0.0652]
[1746081538157,1.72796316,94994.0,94993.0,0.2881]
[1746081538766,1.79286316,94994.0,94993.0,0.2881]
[1746081539069,1.80348184,94994.0,94993.0,0.2881]
[1746081540561,1.80348184,94994.0,94993.0,0.2901]
[1746081540868,1.80348184,94994.0,94993.0,0.2921]
[1746081541264,1.91043023,94994.0,94993.0,0.2921]
[1746081542264,1.89981155,94994.0,94993.0,0.2921]
[1746081542861,1.89981155,94994.0,94993.0,0.10543223]
[1746081543057,1.89981155,94994.0,94993.0,0.10743223]
[1746081543461,1.89981155,94994.0,94993.0,0.10543223]
[1746081543663,1.89981155,94994.0,94993.0,0.10743223]
[1746081544066,1.89981155,94994.0,94993.0,0.10543223]
[1746081544261,1.89981155,94994.0,94993.0,0.10743223]
[1746081544862,1.89981155,94994.0,94993.0,0.10543223]
[1746081545058,1.89981155,94994.0,94993.0,0.10743223]
[1746081546174,1.79286316,94994.0,94993.0,0.10743223]
[1746081546361,1.79286316,94994.0,94993.0,0.13853223]
[1746081546558,1.79286316,94994.0,94993.0,0.10743223]
[1746081546757,1.79286316,94994.0,94993.0,0.10543223]
[1746081547073,1.79286316,94994.0,94993.0,0.10743223]
[1746081547264,1.91486316,94994.0,94993.0,0.10743223]
[1746081547465,1.91486316,94994.0,94993.0,0.14053223]
[1746081549172,1.79286316,94994.0,94993.0,0.14053223]
[1746081550473,1.89981155,94994.0,94993.0,0.14053223]
[1746081551067,2.12811155,94994.0,94993.0,0.14053223]
[1746081554169,2.02116316,94994.0,94993.0,0.14053223]
[1746081569175,2.02116316,94994.0,94993.0,0.17053223]
[1746081571583,2.19846333,94994.0,94993.0,0.17053223]
[1746081573073,1.04182917,94994.0,94993.0,0.17053223]
[1746081575184,0.864529,94994.0,94993.0,0.17053223]
[1746081583898,0.864569,94994.0,94993.0,0.17053223]
[1746081587201,0.831569,94994.0,94993.0,0.17053223]
[1746081587998,0.93860869,94994.0,94993.0,0.17053223]
[1746081588686,0.831569,94994.0,94993.0,0.17053223]
[1746081589784,0.863269,94994.0,94993.0,0.17053223]
[1746081597394,0.831569,94994.0,94993.0,0.17053223]
[1746081597598,0.799669,94994.0,94993.0,0.38106353]
[1746081598001,0.571329,94994.0,94993.0,0.17053223]
[1746081598192,0.603069,94994.0,94993.0,0.29253223]
[1746081599194,0.603069,94994.0,94993.0,0.17053223]
[1746081605203,0.603069,94994.0,94993.0,0.29253223]
[1746081605407,0.603029,94994.0,94993.0,0.29253223]
[1746081605605,0.603069,94994.0,94993.0,0.29253223]
[1746081606402,0.635869,94994.0,94993.0,0.29253223]
[1746081607196,0.635869,94994.0,94993.0,0.17053223]
[1746081610713,1.79250316,94994.0,94993.0,0.10743223]
[1746081610916,1.79250316,94994.0,94980.0,0.00157927]
[1746081610917,1.15663416,94986.0,94980.0,0.00157927]
[1746081611105,1.72799196,94981.0,94980.0,0.20758988]
[1746081612112,1.78889196,94981.0,94980.0,0.21758988]
[1746081612613,1.78989196,94981.0,94980.0,0.21758988]
[1746081612810,1.79089196,94981.0,94980.0,0.21758988]
[1746081612998,1.43009196,94981.0,94980.0,0.21758988]
[1746081613203,1.79089196,94981.0,94980.0,0.21758988]
[1746081618508,0.6342578,94981.0,94980.0,0.21758988]
[1746081625416,1.79089196,94981.0,94980.0,0.21758988]
[1746081626518,1.87105036,94981.0,94980.0,0.21758988]
[1746081628103,1.99305036,94981.0,94980.0,0.21758988]
[1746081629219,1.87105036,94981.0,94980.0,0.21758988]
[1746081633215,0.7144162,94981.0,94980.0,0.21758988]
[1746081635517,1.87105036,94981.0,94980.0,0.21758988]
[1746081636110,1.99305036,94981.0,94980.0,0.21758988]
[1746081636810,1.99309036,94981.0,94980.0,0.21758988]
[1746081637213,1.87109036,94981.0,94980.0,0.21758988]
[1746081639118,1.79093196,94981.0,94980.0,0.21758988]
[1746081645026,1.79093196,94981.0,94980.0,0.25018988]
[1746081646830,1.76093196,94981.0,94980.0,0.25018988]
[1746081647430,1.76089196,94981.0,94980.0,0.25018988]
[1746081647819,1.76093196,94981.0,94980.0,0.25018988]
[1746081648019,1.76093196,94981.0,94980.0,0.24718988]
[1746081648928,1.76093196,94981.0,94980.0,0.24618988]
[1746081649132,1.40013196,94981.0,94980.0,0.24618988]
[1746081649322,1.76093196,94981.0,94980.0,0.24318988]
[1746081649734,1.76093196,94981.0,94980.0,0.24118988]
[1746081649924,1.76093196,94981.0,94980.0,0.24218988]
[1746081651722,0.6042978,94981.0,94980.0,0.24218988]
[1746081651925,0.6042578,94981.0,94980.0,0.24218988]
[1746081652123,0.6042978,94981.0,94980.0,0.24218988]
[1746081655932,0.6042578,94981.0,94980.0,0.24218988]
[1746081656228,0.6042978,94981.0,94980.0,0.36418988]
[1746081657334,0.6042978,94981.0,94980.0,0.24218988]
[1746081658925,0.6042978,94981.0,94980.0,0.07234598]
[1746081659523,0.6042978,94981.0,94980.0,0.10544598]
[1746081662646,0.71136336,94981.0,94980.0,0.10544598]
[1746081671844,0.35056336,94981.0,94980.0,0.10544598]
[1746081672048,0.71136336,94981.0,94980.0,0.10544598]
[1746081673145,0.6042978,94981.0,94980.0,0.10544598]
[1746081674151,0.6359978,94981.0,94980.0,0.10544598]
[1746081681760,0.74306336,94981.0,94980.0,0.10544598]
[1746081684852,0.6359978,94981.0,94980.0,0.10544598]
[1746081685050,0.2751978,94981.0,94980.0,0.10544598]
[1746081685246,0.6359978,94981.0,94980.0,0.10544598]
[1746081686657,0.6359578,94981.0,94980.0,0.10544598]
[1746081692560,0.74302336,94981.0,94980.0,0.10544598]
[1746081697065,0.74302336,94981.0,94980.0,0.07284598]
[1746081697966,0.6359578,94981.0,94980.0,0.07284598]
[1746081702360,1.79259196,94981.0,94980.0,0.07284598]
[1746081708960,1.43179196,94981.0,94980.0,0.07284598]
[1746081709168,1.79259196,94981.0,94980.0,0.07284598]
[1746081712867,1.43179196,94981.0,94980.0,0.07284598]
[1746081713169,1.79259196,94981.0,94980.0,0.07284598]
[1746081717777,0.2105911,94966.0,94944.0,0.3608]
[1746081717976,1.78067306,94966.0,94965.0,0.26]
[1746081718176,1.90267306,94966.0,94965.0,0.26]
[1746081718373,1.96897306,94966.0,94965.0,0.26]
[1746081719177,1.96897306,94966.0,94965.0,0.265]
[1746081720568,1.96897306,94966.0,94965.0,0.268]
[1746081721072,1.96997306,94966.0,94965.0,0.264]
[1746081721276,1.97097306,94966.0,94965.0,0.267]
[1746081721675,1.97097306,94966.0,94965.0,0.266]
[1746081722271,1.97197306,94966.0,94965.0,0.264]
[1746081722468,2.33177306,94966.0,94965.0,0.261]
[1746081722667,2.33377306,94966.0,94965.0,0.262]
[1746081724676,2.44083862,94966.0,94965.0,0.262]
[1746081725177,2.43983862,94966.0,94965.0,0.261]
[1746081725478,2.43783862,94966.0,94965.0,0.26]
[1746081725676,2.43983862,94966.0,94965.0,0.261]
[1746081725865,2.44083862,94966.0,94965.0,0.262]
[1746081726578,0.2106088,94958.0,94957.0,5e-08]
[1746081726777,1.72804296,94958.0,94957.0,5e-08]
[1746081726974,1.83335496,94958.0,94957.0,5e-08]
[1746081727168,1.95535496,94958.0,94957.0,5e-08]
[1746081727778,1.95635496,94958.0,94957.0,0.00100005]
[1746081728167,1.95535496,94958.0,94957.0,5e-08]
[1746081728482,1.95635496,94958.0,94957.0,5e-08]
[1746081728871,1.95635496,94958.0,94957.0,0.00100005]
[1746081729281,1.85104296,94958.0,94957.0,0.00100005]
[1746081730179,2.07934296,94958.0,94957.0,0.00100005]
[1746081733380,2.15923014,94958.0,94957.0,0.00100005]
[1746081739388,2.07934296,94958.0,94957.0,0.00100005]
[1746081741087,1.95734296,94958.0,94957.0,0.00100005]
[1746081745584,1.95734296,94958.0,94957.0,0.03390005]
[1746081747382,1.95734296,94958.0,94957.0,0.06530005]
[1746081748586,1.95738296,94958.0,94957.0,0.06530005]
[1746081749903,2.10208616,94958.0,94942.0,0.01]
[1746081750084,1.51743416,94943.0,94926.0,0.0624]
[1746081750290,0.2106754,94928.0,94927.0,0.0325]
[1746081750583,0.9322754,94928.0,94927.0,0.1435]
[1746081751189,0.9322754,94928.0,94927.0,0.2655]
[1746081753095,0.9342754,94928.0,94927.0,0.2715]
[1746081756696,0.9422571,94928.0,94927.0,0.2715]
[1746081760498,0.5814571,94928.0,94927.0,0.2715]
[1746081769011,0.5814971,94928.0,94927.0,0.2715]
[1746081769808,0.5814971,94928.0,94927.0,0.208]
[1746081770012,0.6123971,94928.0,94927.0,0.208]
[1746081770410,0.6123971,94928.0,94927.0,0.2705]
[1746081772105,0.6123971,94928.0,94927.0,0.208]
[1746081772508,1.76903126,94928.0,94927.0,0.208]
[1746081773801,0.5814971,94928.0,94927.0,0.208]
[1746081774002,0.5814571,94928.0,94927.0,0.2387]
[1746081774214,0.5814971,94928.0,94927.0,0.2387]
[1746081774609,0.5814971,94928.0,94927.0,0.208]
[1746081774815,1.79963126,94928.0,94927.0,0.208]
[1746081778206,1.79963126,94928.0,94927.0,0.086]
[1746081779308,1.79963126,94928.0,94927.0,0.208]
[1746081781204,1.79963126,94928.0,94927.0,0.086]
[1746081782916,1.79863126,94928.0,94927.0,0.083]
[1746081783117,1.79963126,94928.0,94927.0,0.086]
[1746081783415,2.16043126,94928.0,94927.0,0.086]
[1746081789911,2.16043126,94928.0,94913.0,0.0307]
[1746081789912,0.2107087,94913.0,94895.0,0.00105379]
[1746081790111,0.0526798,94909.0,94901.0,0.0623]
[1746081790325,0.5715331,94902.0,94901.0,0.1223]
[1746081790709,0.5715331,94902.0,94895.0,0.00105379]
[1746081790710,0.8632331,94902.0,94895.0,0.00105379]
[1746081790911,1.36740286,94886.0,94885.0,0.1672469]
[1746081791114,2.20500286,94886.0,94885.0,0.0306767]
[1746081791320,2.20500286,94886.0,94885.0,0.0406767]
[1746081791625,2.20500286,94886.0,94885.0,0.01]
[1746081792008,1.0483687,94886.0,94885.0,0.01]
[1746081792216,0.3267687,94886.0,94885.0,0.0718]
[1746081792519,0.6876087,94886.0,94885.0,0.0718]
[1746081792717,0.6886087,94886.0,94885.0,0.0748]
[1746081793320,0.6896087,94886.0,94885.0,0.013]
[1746081793522,1.87904286,94886.0,94885.0,0.013]
[1746081793822,1.87904286,94886.0,94885.0,0.0438]
[1746081794214,1.75704286,94886.0,94885.0,0.1658]
[1746081795209,1.75704286,94886.0,94885.0,0.0438]
[1746081795610,1.75704286,94886.0,94885.0,0.013]
[1746081797425,1.75700286,94886.0,94885.0,0.013]
[1746081797626,1.75704286,94886.0,94885.0,0.013]
[1746081798316,0.5676087,94886.0,94885.0,0.013]
[1746081799216,0.5676087,94886.0,94885.0,0.135]
[1746081799420,0.5675687,94886.0,94885.0,0.135]
[1746081799619,0.5676087,94886.0,94885.0,0.135]
[1746081800319,0.5675687,94886.0,94885.0,0.135]
[1746081800519,0.5676087,94886.0,94885.0,0.135]
[1746081803125,0.5676087,94886.0,94885.0,0.013]
[1746081807226,0.5676087,94886.0,94885.0,0.135]
[1746081809524,0.5666087,94886.0,94885.0,0.132]
[1746081809725,0.5676087,94886.0,94885.0,0.132]
[1746081813140,0.36284,94886.0,94885.0,0.3427709]
[1746081813445,0.3628,94886.0,94885.0,0.4481629]
[1746081813738,0.00204,94886.0,94885.0,0.4481629]
[1746081813935,0.002,94886.0,94885.0,1.9481629]
[1746081814135,0.00204,94886.0,94885.0,1.9481629]
[1746081814335,0.00204,94886.0,94885.0,2.0102629]
[1746081814828,0.002,94886.0,94885.0,2.0102629]
[1746081815240,0.00204,94886.0,94885.0,2.0102629]
[1746081816342,5.401e-05,94897.0,94896.0,0.2107464]
[1746081816544,5.401e-05,94897.0,94896.0,0.4607464]
[1746081816850,0.29060876,94900.0,94899.0,0.2107398]
[1746081817039,0.29060876,94900.0,94899.0,0.4607398]
[1746081817245,0.07987026,94900.0,94899.0,0.6881158]
[1746081817644,0.07991026,94900.0,94899.0,0.6881158]
[1746081817848,0.07987026,94900.0,94899.0,0.7519958]
[1746081818045,0.07991026,94900.0,94899.0,0.7519958]
[1746081819448,0.08091026,94900.0,94899.0,0.7519958]
[1746081819950,0.29364786,94900.0,94899.0,0.7519958]
[1746081820150,0.08191026,94900.0,94899.0,0.7519958]
[1746081820745,0.29264786,94900.0,94899.0,0.7519958]
[1746081823750,0.29164786,94900.0,94899.0,0.7519958]
[1746081823949,0.29264786,94900.0,94899.0,0.7519958]
[1746081824154,0.29164786,94900.0,94899.0,0.7519958]
[1746081824453,0.29264786,94900.0,94899.0,0.7520358]
[1746081824841,0.2127776,94900.0,94899.0,0.7520358]
[1746081825041,0.2127776,94900.0,94899.0,0.541296]
[1746081825560,0.2127776,94900.0,94899.0,0.7520358]
[1746081826745,0.2127776,94900.0,94899.0,0.541296]
[1746081826942,0.2127776,94900.0,94899.0,0.7520358]
[1746081831459,0.2429776,94900.0,94899.0,0.7520358]
[1746081831853,0.2429776,94900.0,94899.0,0.6881158]
[1746081832048,0.2429776,94900.0,94899.0,0.7520358]
[1746081834064,0.2429776,94900.0,94899.0,0.6466598]
[1746081836069,0.2419776,94900.0,94899.0,0.6466598]
[1746081836567,0.2429776,94900.0,94899.0,0.6466598]
[1746081838260,0.2419776,94900.0,94899.0,0.6466598]
[1746081838465,0.2429776,94900.0,94899.0,0.6466598]
[1746081842363,0.00204,94900.0,94899.0,0.6466598]
[1746081842869,0.0312,94904.0,94903.0,0.2107309]
[1746081843058,0.0312,94904.0,94903.0,0.4807309]
[1746081843668,0.2419287,94904.0,94903.0,0.5128309]
[1746081844167,0.2429287,94904.0,94903.0,0.4241]
[1746081844458,0.2439287,94904.0,94903.0,0.4241]
[1746081845366,0.2439287,94904.0,94903.0,0.6348309]
[1746081845961,0.2758287,94904.0,94903.0,0.6348309]
[1746081847972,0.2758287,94904.0,94903.0,0.4241]
[1746081848180,0.2758687,94904.0,94903.0,0.27]
[1746081848763,0.2758687,94904.0,94903.0,0.3016]
[1746081849072,0.2758687,94904.0,94903.0,0.4236]
[1746081849378,0.35573896,94904.0,94903.0,0.4236]
[1746081849569,0.35573896,94904.0,94903.0,0.6343309]
[1746081852073,0.14501026,94904.0,94903.0,0.6343309]
[1746081852473,0.29259896,94904.0,94903.0,0.6343309]
[1746081852771,0.29263896,94904.0,94903.0,0.6343309]
[1746081853178,0.08191026,94904.0,94903.0,0.6343309]
[1746081854063,0.08187026,94904.0,94903.0,0.6343309]
[1746081854274,0.08191026,94904.0,94903.0,0.6343309]
[1746081854462,0.11361026,94904.0,94903.0,0.6343309]
[1746081854668,0.32433896,94904.0,94903.0,0.6343309]
[1746081857771,0.2444687,94904.0,94903.0,0.6343309]
[1746081862166,0.2444687,94904.0,94903.0,0.6979309]
[1746081874076,0.2434687,94904.0,94903.0,0.6979309]
[1746081874276,0.2444687,94904.0,94903.0,0.6979309]
[1746081883988,0.2444287,94904.0,94903.0,0.6979309]
[1746081888390,1.40106286,94904.0,94903.0,0.6979309]
[1746081893087,1.40106286,94904.0,94903.0,0.5759309]
[1746081894377,1.43326286,94904.0,94903.0,0.5759309]
[1746081895592,1.43326286,94904.0,94903.0,0.3336]
[1746081897187,1.43326286,94904.0,94903.0,0.3649]
[1746081897388,1.43426286,94904.0,94903.0,0.3649]
[1746081897983,1.43326286,94904.0,94903.0,0.3649]
[1746081899578,1.43326286,94904.0,94903.0,0.6081309]
[1746081902894,1.43326286,94904.0,94903.0,0.3336]
[1746081907103,1.51313312,94904.0,94903.0,0.3336]
[1746081911899,1.43326286,94904.0,94903.0,0.3336]
[1746081912096,1.43326286,94904.0,94903.0,0.3637]
[1746081914002,1.43226286,94904.0,94903.0,0.3637]
[1746081914302,1.43326286,94904.0,94903.0,0.3637]
[1746081921409,1.79406286,94904.0,94903.0,0.3637]
[1746081922009,1.79406286,94904.0,94903.0,0.5744309]
[1746081922205,1.79406286,94904.0,94903.0,0.6964309]
[1746081922407,1.79406286,94904.0,94903.0,0.4857]
[1746081923211,1.43326286,94904.0,94903.0,0.3637]
[1746081923416,1.79406286,94904.0,94903.0,0.3637]
[1746081926599,1.89943486,94904.0,94903.0,0.23512]
[1746081928114,1.90043486,94904.0,94903.0,0.23512]
[1746081928299,1.90143486,94904.0,94903.0,0.23512]
[1746081929214,2.02343486,94904.0,94903.0,0.23512]
[1746081930409,2.02443486,94904.0,94903.0,0.23512]
[1746081930610,2.02243486,94904.0,94903.0,0.23512]
[1746081930809,2.02543486,94904.0,94903.0,0.23512]
[1746081932409,2.25373486,94904.0,94903.0,0.23512]
[1746081934407,1.89293486,94904.0,94903.0,0.23512]
[1746081934603,2.61453486,94904.0,94903.0,0.23512]
[1746081936823,2.61453486,94904.0,94903.0,0.1612743]
[1746081937015,0.2107598,94890.0,94889.0,0.0316]
[1746081937212,1.72819396,94890.0,94889.0,0.0516]
[1746081937814,1.79519396,94890.0,94889.0,0.0516]
[1746081938215,1.92892002,94890.0,94889.0,0.02]
[1746081938414,2.15822002,94890.0,94889.0,0.02]
[1746081939309,2.03622002,94890.0,94889.0,0.02]
[1746081941320,2.15822002,94890.0,94889.0,0.02]
[1746081942123,2.03622002,94890.0,94889.0,0.02]
[1746081942808,2.14160402,94890.0,94889.0,0.02]
[1746081943014,2.14160402,94890.0,94879.0,0.0311]
[1746081943015,0.210782,94880.0,94879.0,0.0311]
[1746081943327,1.72821616,94880.0,94879.0,0.06]
[1746081943623,1.83361216,94880.0,94879.0,0.06]
[1746081944121,1.83461216,94880.0,94879.0,0.06]
[1746081944622,1.83561216,94880.0,94879.0,0.06]
[1746081944829,1.90011216,94880.0,94879.0,0.06]
[1746081945029,1.90411216,94880.0,94879.0,0.06]
[1746081945509,1.90811216,94880.0,94879.0,0.06]
[1746081946107,1.80271616,94880.0,94879.0,0.06]
[1746081946310,1.81063758,94880.0,94879.0,0.06]
[1746081949714,1.89042477,94880.0,94879.0,0.06]
[1746081950116,2.11872477,94880.0,94879.0,0.06]
[1746081953723,2.05422477,94880.0,94879.0,0.06]
[1746081953920,1.97447758,94880.0,94879.0,0.06]
[1746081954111,1.97447758,94880.0,94879.0,0.182]
[1746081955927,0.81784342,94880.0,94879.0,0.182]
[1746081957026,0.81780342,94880.0,94879.0,0.182]
[1746081957220,0.81784342,94880.0,94879.0,0.182]
[1746081957420,0.81780342,94880.0,94879.0,0.182]
[1746081957724,0.81784342,94880.0,94879.0,0.182]
[1746081958915,1.17864342,94880.0,94879.0,0.182]
[1746081961721,0.95034342,94880.0,94879.0,0.182]
[1746081965923,0.95030342,94880.0,94879.0,0.182]
[1746081966122,0.95034342,94880.0,94879.0,0.182]
[1746081970233,0.95034342,94880.0,94879.0,0.06]
[1746081971523,0.95034342,94880.0,94879.0,0.1219]
[1746081973132,0.95034342,94880.0,94879.0,0.2439]
[1746081973522,0.98194342,94880.0,94879.0,0.2439]
[1746081975134,0.98194342,94880.0,94879.0,0.1219]
[1746081976133,0.98194342,94880.0,94879.0,0.2439]
[1746081977632,1.01274342,94880.0,94879.0,0.2439]
[1746081979340,2.27477358,94880.0,94879.0,0.1403658]
[1746081979551,2.30537358,94880.0,94879.0,0.122]
[1746081979843,2.19997758,94880.0,94879.0,0.122]